fUSD/lending_fUSD_20240609
["ID","MTS","AMOUNT","RATE_DAILY","PERIOD"]
[328891164,1717962666982,-513.01321331,0.00029298,4]
[328891165,1717962666993,-502.85422486,0.00029298,4]
[328891166,1717962667004,-500.0,0.00029298,4]
[328891167,1717962667015,-500.0,0.00029298,4]
[328891168,1717962667026,-500.0,0.00029298,4]
[328891169,1717962667037,-500.0,0.00029298,4]
[328891170,1717962667048,-500.0,0.00029298,4]
[328891171,1717962667058,-500.0,0.00029298,4]
[328891172,1717962667071,-500.0,0.00029298,4]
[328891173,1717962667081,-500.0,0.00029298,4]
[328891174,1717962667091,-500.0,0.00029298,4]
[328891175,1717962667101,-500.0,0.00029298,4]
[328891176,1717962667111,-500.0,0.00029298,4]
[328891177,1717962667122,-500.0,0.00029298,4]
[328891178,1717962667132,-500.0,0.00029298,4]
[328891179,1717962667143,-500.0,0.00029298,4]
[328891180,1717962667153,-500.0,0.00029298,4]
[328891181,1717962667163,-500.0,0.00029298,4]
[328891182,1717962667175,-500.0,0.00029298,4]
[328891183,1717962667188,-500.0,0.00029298,4]
[328891184,1717962667198,-441.26513225,0.00029298,4]
[328891185,1717962667223,-58.73486775,0.00029298,4]
[328891186,1717962667234,-500.0,0.00029298,4]
[328891187,1717962667245,-500.0,0.00029298,4]
[328891188,1717962667255,-500.0,0.00029298,4]
[328891189,1717962667267,-500.0,0.00029298,4]
[328891190,1717962667278,-500.0,0.00029298,4]
[328891191,1717962667289,-507.48570906,0.00029298,4]
[328891192,1717962667300,-500.0,0.00029298,4]
[328891193,1717962667313,-215.86215164,0.00029298,4]
[328891194,1717962667324,-453.86192337,0.00029298,4]
[328891195,1717962667334,-500.0,0.00029298,4]
[328891196,1717962667345,-491.70415369,0.00029298,4]
[328891197,1717962667356,-514.04143462,0.00029298,4]
[328891198,1717962667369,-500.0,0.00029298,4]
[328891199,1717962667379,-571.63,0.00029298,4]
[328891200,1717962667390,-500.0,0.00029298,4]
[328891201,1717962667401,-500.0,0.00029298,4]
[328891202,1717962667411,-5972.88,0.00029298,4]
[328891203,1717962667421,-635.62964893,0.00029298,4]
[328891204,1717962667431,-5972.88,0.00029298,4]
[328891205,1717962667441,-5972.88,0.00029298,4]
[328891206,1717962667452,-2175.87695892,0.00029298,4]
[328891207,1717962667466,-3797.00304108,0.00029298,4]
[328891208,1717962667476,-5972.88,0.00029298,4]
[328891209,1717962667486,-5972.88,0.00029298,4]
[328891210,1717962667497,-509.91302127,0.00029298,4]
[328891211,1717962667507,-5972.88,0.00029298,4]
[328891212,1717962667519,-500.0,0.00029298,4]
[328891213,1717962667529,-5972.88,0.00029298,4]
[328891214,1717962667539,-569.53460377,0.00029298,4]
[328891215,1717962667550,-500.0,0.00029298,4]
[328891216,1717962667562,-5972.88,0.00029298,4]
[328891217,1717962667573,-500.0,0.00029298,4]
[328891218,1717962667583,-644.38,0.00029298,4]
[328891219,1717962667594,-5972.88,0.00029298,4]
[328891220,1717962667605,-644.38,0.00029298,4]
[328891221,1717962667616,-500.0,0.00029298,4]
[328891222,1717962667626,-5972.88,0.00029298,4]
[328891223,1717962667637,-644.38,0.00029298,4]
[328891224,1717962667648,-500.0,0.00029298,4]
[328891225,1717962667658,-204.31047604,0.00029298,4]
[328891226,1717962667669,-5972.88,0.00029298,4]
[328891227,1717962667679,-155.52670837,0.00029298,4]
[328891228,1717962667690,-644.38,0.00029298,4]
[328891229,1717962667700,-504.55607732,0.00029298,4]
[328891230,1717962667711,-5972.88,0.00029298,4]
[328891231,1717962667721,-644.38,0.00029298,4]
[328891232,1717962667731,-644.38,0.00029298,4]
[328891233,1717962667741,-644.38,0.00029298,4]
[328891234,1717962667752,-644.38,0.00029298,4]
[328891235,1717962667762,-644.38,0.00029298,4]
[328891236,1717962667773,-644.38,0.00029298,4]
[328891237,1717962667783,-506.6980211,0.00029298,4]
[328891238,1717962667793,-512.92516835,0.00029298,4]
[328891239,1717962667803,-644.38,0.00029298,4]
[328891240,1717962667813,-644.38,0.00029298,4]
[328891241,1717962667823,-519.50428641,0.00029298,4]
[328891242,1717962667834,-644.38,0.00029298,4]
[328891243,1717962667845,-500.0,0.00029298,4]
[328891244,1717962667855,-500.0,0.00029298,4]
[328891245,1717962667865,-500.0,0.00029298,4]
[328891246,1717962667875,-500.0,0.00029298,4]
[328891247,1717962667885,-512.51347395,0.00029298,4]
[328891248,1717962667895,-510.83937595,0.00029298,4]
[328891249,1717962667906,-500.0,0.00029298,4]
[328891250,1717962667916,-500.0,0.00029298,4]
[328891251,1717962667926,-500.0,0.00029298,4]
[328891252,1717962667937,-500.0,0.00029298,4]
[328891253,1717962667948,-500.0,0.00029298,4]
[328891254,1717962667958,-500.0,0.00029298,4]
[328891255,1717962667970,-500.0,0.00029298,4]
[328891256,1717962667981,-500.0,0.00029298,4]
[328891257,1717962667992,-500.0,0.00029298,4]
[328891258,1717962668003,-500.0,0.00029298,4]
[328891259,1717962668014,-500.0,0.00029298,4]
[328891260,1717962668025,-513.17453756,0.00029298,4]
[328891261,1717962668037,-500.0,0.00029298,4]
[328891262,1717962668048,-500.0,0.00029298,4]
[328891263,1717962668059,-455.86907803,0.00029298,4]
[328891264,1717962668071,-548.49583893,0.00029298,4]
[328891265,1717962668082,-1085.03,0.00029298,4]
[328891266,1717962668092,-1085.03,0.00029298,4]
[328891267,1717962668103,-1085.03,0.00029298,4]
[328891268,1717962668114,-1085.03,0.00029298,4]
[328891269,1717962668125,-1085.03,0.00029298,4]
[328891270,1717962668137,-1085.03,0.00029298,4]
[328891271,1717962668147,-926.55,0.00029298,4]
[328891272,1717962668158,-1085.03,0.00029298,4]
[328891273,1717962668170,-926.55,0.00029298,4]
[328891274,1717962668181,-1085.03,0.00029298,4]
[328891275,1717962668191,-926.55,0.00029298,4]
[328891276,1717962668278,-1085.03,0.00029298,4]
[328891277,1717962668289,-926.55,0.00029298,4]
[328891278,1717962668299,-1085.03,0.00029298,4]
[328891279,1717962668311,-926.55,0.00029298,4]
[328891280,1717962668322,-1085.03,0.00029298,4]
[328891281,1717962668333,-926.55,0.00029298,4]
[328891282,1717962668344,-1085.03,0.00029298,4]
[328891283,1717962668355,-926.55,0.00029298,4]
[328891284,1717962668366,-1085.03,0.00029298,4]
[328891285,1717962668377,-926.55,0.00029298,4]
[328891286,1717962668388,-926.55,0.00029298,4]
[328891287,1717962668399,-926.55,0.00029298,4]
[328891288,1717962668411,-926.55,0.00029298,4]
[328891289,1717962668422,-132.33033487,0.00029298,4]
[328891290,1717962668720,155.0,0.00017259,2]
[328891291,1717962668861,5273.70308034,0.00017259,2]
[328891292,1717962668939,-601.67,0.00017259,2]
[328891293,1717962669616,150.0,0.00015,2]
[328891294,1717962669640,150.0,0.00015,2]
[328891295,1717962669667,150.0,0.00015,2]
[328891296,1717962669692,150.0,0.00015,2]
[328891297,1717962669716,67.0,0.00015,2]
[328891298,1717962670961,83.0,0.00014999,2]
[328891299,1717962670984,150.0,0.00014999,2]
[328891300,1717962671008,150.0,0.00014999,2]
[328891301,1717962671031,150.0,0.00014999,2]
[328891302,1717962671057,150.0,0.00014999,2]
[328891303,1717962671083,150.0,0.00014999,2]
[328891304,1717962671107,109.21986682,0.00014999,2]
[328891305,1717962672587,-150.0,0.00017258,2]
[328891306,1717962672614,-150.0,0.00017258,2]
[328891307,1717962673420,-380.75145778,0.00017259,2]
[328891308,1717962673931,-504.74,0.00017259,2]
[328891309,1717962674394,-504.74,0.00017259,2]
[328891315,1717962992505,160.0,0.00028989,120]
[328891316,1717963073368,490.9,0.00014981,2]
[328891317,1717963104147,2612.32199808,0.00014681,2]
[328891318,1717963109260,24660.54978743,0.00014981,2]
[328891319,1717963113305,155.0,0.00014981,2]
[328891320,1717963123467,24660.54978743,0.00014981,2]
[328891321,1717963124151,1307.24298609,0.00014681,2]
[328891322,1717963125308,163.94201956,0.00014981,2]
[328891323,1717963126912,155.0,0.0001498,2]
[328891324,1717963130064,155.0,0.0001498,2]
[328891325,1717963143464,24660.54978743,0.00014981,2]
[328891326,1717963161299,24660.54978743,0.0001498,2]
[328891327,1717963179479,13209.85932812,0.0001498,2]
[328891328,1717963202565,150.0,0.0001498,2]
[328891329,1717963202756,150.0,0.0001498,2]
[328891330,1717963202988,150.0,0.0001498,2]
[328891331,1717963203204,150.0,0.0001498,2]
[328891332,1717963203432,219.84992135,0.0001498,2]
[328891333,1717963600104,2368.60119743,0.00014999,2]
[328891334,1717963600272,719.32179268,0.00014999,2]
[328891335,1717963602484,201.64148981,0.00014999,2]
[328891336,1717963604203,436.52797534,0.00014999,2]
[328891337,1717963607489,4614.50555793,0.00014999,2]
[328891338,1717963609688,209.48648077,0.00014999,2]
[328891339,1717963610536,282.90771875,0.00014999,2]
[328891340,1717963612980,2194.29164749,0.00014999,2]
[328891341,1717963613671,525.31539488,0.00014999,2]
[328891342,1717963615107,267.27560614,0.00014999,2]
[328891343,1717963618892,195.75770378,0.00014999,2]
[328891344,1717963620419,537.72037607,0.00014999,2]
[328891345,1717963622188,162.61492779,0.00014999,2]
[328891346,1717963622756,307.41147167,0.00014999,2]
[328891347,1717963623549,241.58417095,0.00014999,2]
[328891348,1717963627141,155.0,0.00014999,2]
[328891349,1717963627576,4291.15759947,0.00014999,2]
[328891350,1717963628993,2370.40737101,0.00014999,2]
[328891351,1717963630002,1414.673433,0.00014925,2]
[328891352,1717963630183,345.67546553,0.00014999,2]
[328891353,1717963630985,2875.9454186,0.00014999,2]
[328891354,1717963631028,2137.86852519,0.00014999,2]
[328891355,1717963631775,466.35,0.00013091,2]
[328891356,1717963633095,7542.42300852,0.00014999,2]
[328891357,1717963633393,10537.36464,0.00014999,2]
[328891358,1717963634693,155.0,0.00014999,2]
[328891359,1717963635831,263.8016458,0.00014999,2]
[328891360,1717963638051,10975.55818722,0.00014999,2]
[328891361,1717963640484,338.62209965,0.00014999,2]
[328891362,1717963641498,3386.25740591,0.00014999,2]
[328891363,1717963643209,429.72610694,0.00014999,2]
[328891364,1717963645215,8420.13275678,0.00014999,2]
[328891365,1717963645527,2822.20152753,0.00014999,2]
[328891366,1717963646138,-792.34288822,0.00015,2]
[328891367,1717963646169,-240.89824305,0.00015,2]
[328891368,1717963647923,35482.43622612,0.00014999,2]
[328891369,1717963651143,715.65054518,0.00014999,2]
[328891370,1717963651301,864.46411372,0.00014999,2]
[328891371,1717963651333,1261.47243226,0.00014999,2]
[328891372,1717963662394,205.63487324,0.00014999,2]
[328891373,1717963724618,1219.0116262,0.00014999,2]
[328891374,1717963732408,155.0,0.00014999,2]
[328891375,1717963732511,1490.02429132,0.00014999,2]
[328891376,1717963737780,625.74636743,0.00014999,2]
[328891377,1717963739508,1052.98663514,0.00014999,2]
[328891379,1717963774114,-1392.19071084,0.00015,2]
[328891380,1717963774138,-481.92505134,0.00015002,2]
[328891381,1717963774163,-1594.36,0.00015003,2]
[328891382,1717963774187,-250.0,0.00015031,2]
[328891383,1717963774211,-150.0,0.00015239,2]
[328891384,1717963774234,-150.99,0.0001524,2]
[328891385,1717963774257,-326.87,0.0001524,2]
[328891386,1717963774279,-8868.2,0.0001524,2]
[328891387,1717963774302,-20525.16,0.00015246,2]
[328891388,1717963774325,-250.0,0.00015273,2]
[328891389,1717963774348,-466.35,0.00015354,2]
[328891390,1717963774370,-2373.46,0.00015389,2]
[328891391,1717963774393,-2801.25531206,0.00015471,2]
[328891392,1717963774417,-436.52797534,0.00015485,2]
[328891393,1717963774439,-202.3581185,0.00015485,2]
[328891394,1717963774461,-209.13675649,0.00015485,2]
[328891395,1717963774484,-1105.35149516,0.00015485,2]
[328891396,1717963774506,-524.54449186,0.00015485,2]
[328891397,1717963774529,-282.90771875,0.00015485,2]
[328891398,1717963774552,-195.42435171,0.00015485,2]
[328891399,1717963774575,-267.27560614,0.00015485,2]
[328891400,1717963774602,-162.88953643,0.00015485,2]
[328891401,1717963774627,-307.41147167,0.00015485,2]
[328891402,1717963774650,-155.44304881,0.00015485,2]
[328891403,1717963774676,-241.96633584,0.00015485,2]
[328891404,1717963774699,-2368.59467298,0.00015485,2]
[328891405,1717963774722,-2432.47930514,0.00015486,2]
[328891406,1717963774746,-719.32179268,0.00015488,2]
[328891407,1717963774769,-2236.42,0.00015489,2]
[328891408,1717963774794,-4291.15759947,0.00015614,2]
[328891409,1717963774817,-1794.9987264,0.00015615,2]
[328891410,1717963774844,-155.59394756,0.00015707,2]
[328891411,1717963774866,-2685.97,0.00015728,2]
[328891412,1717963774889,-6486.8472793,0.00015882,2]
[328891413,1717963774911,-2751.0,0.0001589,2]
[328891414,1717963774942,-200.0,0.00015896,2]
[328891415,1717963774965,-205.63487324,0.00016236,2]
[328891416,1717963774989,-792.34288822,0.00016237,2]
[328891417,1717963775011,-263.8016458,0.00016238,2]
[328891418,1717963775035,-175.73,0.00016239,2]
[328891419,1717963775204,-7542.42300852,0.00016433,2]
[328891420,1717963775231,-2137.86852519,0.00016434,2]
[328891421,1717963775253,-2875.9454186,0.00016435,2]
[328891422,1717963775277,-459.73457686,0.00016436,2]
[328891423,1717963775306,-491.99039162,0.00016436,2]
[328891424,1717963775330,-10537.36464,0.00016453,2]
[328891425,1717963775354,-1165.95,0.00016454,2]
[328891426,1717963775378,-386.67806755,0.00016533,2]
[328891427,1717963775401,-281.19540885,0.00016533,2]
[328891428,1717963775425,-3695.71493671,0.00016533,2]
[328891429,1717963775449,-289.33186334,0.00016533,2]
[328891430,1717963775473,-334.7295269,0.00016533,2]
[328891431,1717963775497,-3384.68346404,0.00016533,2]
[328891432,1717963775520,-2120.29980017,0.00016533,2]
[328891433,1717963775544,-2815.73279865,0.00016533,2]
[328891434,1717963775570,-17094.76356435,0.00016533,2]
[328891435,1717963775596,-888.01017264,0.00016533,2]
[328891436,1717963775620,-714.42294027,0.00016533,2]
[328891437,1717963775644,-821.66127683,0.00016533,2]
[328891438,1717963775668,-536.86139376,0.00016534,2]
[328891439,1717963775691,-1118.08,0.00016537,2]
[328891440,1717963775713,-499.99,0.00016631,2]
[328891441,1717963775735,-358.3,0.00016705,2]
[328891442,1717963775759,-210.0,0.00016763,2]
[328891443,1717963775781,-172.43,0.00016781,2]
[328891444,1717963775805,-457.52,0.00016823,6]
[328891445,1717963775830,-1000.0,0.000169,6]
[328891446,1717963775854,-1108.89882352,0.00017158,2]
[328891447,1717963775880,-427.49328178,0.00017255,2]
[328891448,1717963775908,-625.74636743,0.00017255,2]
[328891449,1717963775934,-161.66768424,0.00017255,2]
[328891450,1717963775961,-1052.98663514,0.00017255,2]
[328891451,1717963775985,-1219.0116262,0.00017256,2]
[328891452,1717963776010,-156.46996708,0.00017258,2]
[328891453,1717963776034,-155.0,0.00017259,2]
[328891454,1717963776059,-155.59394756,0.00017323,2]
[328891455,1717963776087,-466.35,0.00017618,2]
[328891456,1717963776112,-491.99039162,0.00018259,2]
[328891457,1717963776139,-210.0,0.00018439,2]
[328891458,1717963776162,-97041.75878885,0.00018467,2]
[328891468,1717963832499,-291.40852917,0.00017259,2]
[328891469,1717963832511,-319.94132489,0.00018368,2]
[328891470,1717963832521,-261.23787219,0.00018457,2]
[328891471,1717963832532,-206.82730358,0.00018465,2]
[328891472,1717963832543,-203.75592386,0.00018465,2]
[328891473,1717963832555,-3821.34534074,0.00018465,2]
[328891474,1717963832570,-460.67125677,0.00018465,2]
[328891475,1717963832581,-157.35791099,0.00018465,2]
[328891476,1717963832595,-7407.55277388,0.00018465,2]
[328891477,1717963832606,-1157.49985742,0.00018465,2]
[328891478,1717963832617,-289.7178513,0.00018465,2]
[328891479,1717963832628,-267.27560614,0.00018465,2]
[328891480,1717963832639,-1052.5997462,0.00018465,2]
[328891481,1717963832651,-965.11693219,0.00018465,2]
[328891482,1717963832663,-541.40657168,0.00018465,2]
[328891483,1717963832678,-1212.18843399,0.00018465,2]
[328891484,1717963832689,-1916.44430422,0.00018465,2]
[328891485,1717963832701,-737.38152498,0.00018465,2]
[328891486,1717963832714,-1387.64137212,0.00018466,2]
[328891487,1717963832724,-481.92505134,0.00018466,2]
[328891488,1717963832737,-200.43904701,0.00018466,2]
[328891489,1717963832750,-307.41147167,0.00018466,2]
[328891490,1717963832763,-2685.97,0.00018468,2]
[328891491,1717963832774,-172.43,0.00018561,2]
[328891492,1717963832785,-442.05435603,0.00019178,2]
[328891493,1717963832796,-443.26036358,0.00019178,2]
[328891494,1717963832807,-500.0,0.00019178,2]
[328891495,1717963832817,-160.0,0.00019326,2]
[328891496,1717963832827,-155.0,0.0001945,2]
[328891497,1717963832838,-459.73457686,0.00019562,2]
[328891498,1717963832849,-466.35,0.00019882,2]
[328891499,1717963832859,-45388.42606077,0.00020082,2]
[328891500,1717963832873,-6952.1452,0.00020082,2]
[328891501,1717963832899,-427.5,0.00020082,2]
[328891502,1717963832916,-1057.3,0.00020082,2]
[328891503,1717963832929,-949.89149577,0.00020082,2]
[328891504,1717963832941,-11272.42539774,0.00020082,2]
[328891505,1717963832954,-3627.98174025,0.00020082,2]
[328891506,1717963833153,-1039.56185241,0.00020082,2]
[328891507,1717963833221,-428.58099967,0.00020082,2]
[328891508,1717963835040,-404.25444153,0.00020081,2]
[328891509,1717963835051,-9235.19005274,0.00020082,2]
[328891510,1717963835064,-597.65331933,0.00020082,2]
[328891511,1717963835082,-1135.31386899,0.00020082,2]
[328891523,1717963838240,-346.66,0.00020082,2]
[328891524,1717963838415,-5635.24233459,0.00020082,2]
[328891525,1717963838428,-4886.7500001,0.00020082,2]
[328891526,1717963838442,-11086.24012462,0.00020082,2]
[328891527,1717963838456,-1668.02101365,0.00020082,2]
[328891528,1717963838472,-1187.82127372,0.00020082,2]
[328891529,1717963838486,-1612.70396669,0.00020082,2]
[328891539,1717963841605,-522.5350253,0.00020082,2]
[328891540,1717963841618,-990.00311936,0.00020082,2]
[328891541,1717963841630,-1731.86176701,0.00020082,2]
[328891543,1717963843038,-81.680588,0.00020082,2]
[328891544,1717963843050,-128002.3561243,0.00020082,2]
[328891545,1717963843097,-912.34002185,0.00020082,2]
[328891546,1717963843360,-285761.85420063,0.00020082,2]
[328891547,1717963843436,-164682.17619952,0.00020082,2]
[328891548,1717963843447,-491.99039162,0.00020083,2]
[328891549,1717963843458,-1385.8177,0.000201,2]
[328891550,1717963843468,-226.67450997,0.000201,2]
[328891551,1717963843478,-172.43,0.00020342,2]
[328891552,1717963843488,-166.26,0.00020813,2]
[328891553,1717963843498,-1594.36,0.00021005,2]
[328891554,1717963843508,-2685.97,0.00021207,2]
[328891555,1717963843518,-189.52,0.00021438,2]
[328891556,1717963843529,-169.15768973,0.00021896,2]
[328891557,1717963843540,-491.99039162,0.00021906,2]
[328891558,1717963843550,-170.35382184,0.00021972,2]
[328891559,1717963843560,-466.35,0.00022146,2]
[328891560,1717963843571,-1605.0,0.000226,3]
[328891561,1717963843581,-459.73457686,0.00022689,2]
[328891562,1717963843592,-994.65,0.00022747,2]
[328891563,1717963843605,-994.65,0.00022753,2]
[328891564,1717963843615,-994.65,0.00022758,2]
[328891565,1717963843626,-994.65,0.00022764,2]
[328891566,1717963843636,-994.65,0.0002277,2]
[328891567,1717963843647,-994.65,0.00022776,2]
[328891568,1717963843658,-994.65,0.00022782,2]
[328891569,1717963843669,-994.65,0.00022788,2]
[328891570,1717963843682,-994.65,0.00022794,2]
[328891571,1717963843695,-994.65,0.000228,2]
[328891572,1717963843706,-994.65,0.00022806,2]
[328891573,1717963843718,-994.65,0.00022812,2]
[328891574,1717963843729,-994.65,0.00022818,2]
[328891575,1717963843741,-994.65,0.00022824,2]
[328891576,1717963843753,-994.65,0.0002283,2]
[328891577,1717963843763,-994.65,0.00022836,2]
[328891578,1717963843777,-994.65,0.00022842,2]
[328891579,1717963843788,-994.65,0.00022848,2]
[328891580,1717963843801,-994.65,0.00022854,2]
[328891581,1717963843813,-994.65,0.0002286,2]
[328891582,1717963843825,-1108.89882352,0.00023028,2]
[328891583,1717963843836,-257.82,0.00023669,2]
[328891584,1717963843846,-491.99039162,0.0002373,2]
[328891585,1717963843856,-1000.0,0.00024132,2]
[328891586,1717963843866,-176.17,0.00024384,2]
[328891587,1717963843876,-466.35,0.0002441,2]
[328891588,1717963843886,-212.02,0.00024509,2]
[328891589,1717963843897,-161.57332433,0.00024798,2]
[328891590,1717963843909,-161.57332433,0.00024798,2]
[328891591,1717963843920,-161.57332433,0.00024798,2]
[328891592,1717963843931,-161.57332433,0.00024798,2]
[328891593,1717963843942,-257.82,0.00024852,2]
[328891594,1717963843953,-189.52,0.00024976,2]
[328891595,1717963843965,-491.99039162,0.00025553,2]
[328891597,1717963843976,-459.73457686,0.00025815,2]
[328891599,1717963843985,-257.82,0.00026035,2]
[328891601,1717963843996,-752.43574606,0.00026368,2]
[328891603,1717963844006,-161.57332433,0.00026438,2]
[328891605,1717963844016,-466.35,0.00026674,2]
[328891607,1717963844026,-1000.0,0.00027148,2]
[328891609,1717963844036,-257.82,0.00027219,2]
[328891611,1717963844047,-491.99039162,0.00027377,2]
[328891613,1717963844057,-500.0,0.00027397,2]
[328891615,1717963844067,-500.0,0.00027397,2]
[328891617,1717963844077,-500.0,0.00027397,2]
[328891619,1717963844087,-500.0,0.00027397,2]
[328891621,1717963844097,-550.39428471,0.00027397,2]
[328891623,1717963844107,-152.18,0.00027397,2]
[328891625,1717963844118,-407.56315179,0.00027399,2]
[328891627,1717963844127,-155.0,0.00027399,2]
[328891629,1717963844137,-156.54,0.000274,2]
[328891631,1717963844147,-24804.1337,0.00027728,2]
[328891633,1717963844158,-217.60839772,0.00027735,2]
[328891635,1717963844168,-1298.78853938,0.0002783,2]
[328891637,1717963844179,-6573.81122035,0.00028,6]
[328891639,1717963844189,-625.51327285,0.00028124,2]
[328891641,1717963844199,-2100.0,0.000282,10]
[328891643,1717963844209,-3100.0,0.000283,10]
[328891645,1717963844219,-152.18,0.00028376,2]
[328891647,1717963844230,-4200.0,0.000284,10]
[328891649,1717963844240,-257.82,0.00028402,2]
[328891651,1717963844251,-500.0,0.00028493,4]
[328891653,1717963844261,-500.0,0.00028493,4]
[328891655,1717963844272,-500.0,0.00028493,4]
[328891657,1717963844283,-306.86963167,0.00028493,4]
[328891659,1717963844294,-5200.0,0.000285,10]
[328891661,1717963844305,-1000.0,0.000286,10]
[328891663,1717963844315,-1000.0,0.000287,10]
[328891665,1717963844326,-1000.0,0.000288,10]
[328891667,1717963844336,-196.78108184,0.00028897,2]
[328891669,1717963844346,-171.5650012,0.00028897,2]
[328891671,1717963844357,-174.72044621,0.00028897,2]
[328891673,1717963844367,-3253.71397041,0.00028897,2]
[328891675,1717963844377,-1108.89882352,0.00028897,2]
[328891677,1717963844388,-189.83352142,0.00028897,2]
[328891679,1717963844399,-1000.0,0.000289,10]
[328891681,1717963844409,-1006.78,0.000289,2]
[328891683,1717963844419,-1000.0,0.000289,2]
[328891685,1717963844432,-3253.71397035,0.00028925,2]
[328891687,1717963844442,-466.35,0.00028938,2]
[328891689,1717963844452,-459.73457686,0.00028941,2]
[328891691,1717963844463,-445.94325407,0.00028941,2]
[328891693,1717963844473,-817.70353478,0.00028941,2]
[328891695,1717963844483,-194.6313974,0.00028941,2]
[328891697,1717963844493,-3253.71397035,0.00028952,2]
[328891699,1717963844504,-196.78108181,0.00028973,2]
[328891701,1717963844514,-3253.71397035,0.0002898,2]
[328891703,1717963844525,-153.38,0.00028987,2]
[328891705,1717963844536,-999.0,0.00028996,7]
[328891707,1717963844546,-999.0,0.00028996,7]
[328891709,1717963844556,-999.0,0.00028996,7]
[328891711,1717963844567,-577.78659203,0.00028996,7]
[328891713,1717963844577,-40755.5537,0.00028997,2]
[328891715,1717963844588,-1000.0,0.00028997,2]
[328891717,1717963844601,-318.8813,0.00028997,2]
[328891719,1717963844612,-867.6847,0.00028997,2]
[328891721,1717963844623,-245000.0,0.00028997,2]
[328891723,1717963844633,-500.0,0.00028997,2]
[328891725,1717963844645,-1000.0,0.00028998,5]
[328891727,1717963844655,-3253.71397035,0.00029007,2]
[328891729,1717963844666,-3000.0,0.0002901,2]
[328891731,1717963844678,-382.01150973,0.00029021,2]
[328891733,1717963844689,-150.0,0.00029029,2]
[328891735,1717963844699,-269.07381072,0.00029029,2]
[328891737,1717963844710,-261.23787219,0.00029031,2]
[328891739,1717963844720,-261.23787219,0.00029031,2]
[328891741,1717963844731,-153.38,0.00029031,2]
[328891743,1717963844742,-3253.71397035,0.00029035,2]
[328891745,1717963844752,-196018.46872461,0.00029041,13]
[328891747,1717963844763,-500.0,0.00029041,4]
[328891749,1717963844774,-500.0,0.00029041,4]
[328891751,1717963844784,-500.0,0.00029041,4]
[328891753,1717963844794,-509.13716905,0.00029041,4]
[328891755,1717963844804,-638.17,0.00029041,4]
[328891757,1717963844814,-559.98,0.00029041,4]
[328891759,1717963844824,-500.0,0.00029041,4]
[328891761,1717963844834,-500.0,0.00029041,4]
[328891763,1717963844844,-500.0,0.00029041,4]
[328891765,1717963844856,-500.0,0.00029041,4]
[328891767,1717963844866,-500.0,0.00029041,4]
[328891769,1717963844878,-234.18,0.00029041,4]
[328891771,1717963844888,-500.0,0.00029041,4]
[328891773,1717963844898,-515.44,0.00029041,4]
[328891775,1717963844909,-500.0,0.00029041,4]
[328891777,1717963844919,-500.0,0.00029041,4]
[328891779,1717963844929,-202.33,0.00029041,4]
[328891781,1717963844940,-500.0,0.00029041,4]
[328891783,1717963844951,-500.0,0.00029041,4]
[328891785,1717963844961,-500.0,0.00029041,4]
[328891787,1717963844971,-500.0,0.00029041,4]
[328891789,1717963844981,-500.0,0.00029041,4]
[328891791,1717963844992,-500.0,0.00029041,4]
[328891793,1717963845002,-500.0,0.00029041,4]
[328891795,1717963845012,-500.0,0.00029041,4]
[328891796,1717963845023,-509.78,0.00029041,4]
[328891798,1717963845033,-500.0,0.00029041,4]
[328891800,1717963845044,-500.0,0.00029041,4]
[328891801,1717963845054,-500.0,0.00029041,4]